bitfinex-derivatives/quotes_SOLF0:USTF0_20250524
["timestamp","ask_amount","ask_price","bid_price","bid_amount"]
[1748060164646,2.96065066,175.07,175.05,0.03637175]
[1748060165343,5.7107,175.06,175.05,0.03637175]
[1748060169649,2.96065066,175.07,174.95,1.9777]
[1748060169847,2.96065066,175.0,174.95,6.94808413]
[1748060170248,2.96065066,175.07,174.99,2.96065066]
[1748060170453,10.60171507,175.08,175.01,2.96065066]
[1748060170655,0.03873786,175.06,175.03,0.04345237]
[1748060171165,0.03873786,175.06,175.05,5.711]
[1748060172059,10.60171507,175.1,175.09,5.7097]
[1748060172558,7.50861507,175.1,175.09,5.7097]
[1748060173160,7.50861507,175.1,175.08,5.74599914]
[1748060173459,7.50861507,175.1,175.08,0.03609914]
[1748060176254,5.7094,175.1,175.08,0.03609914]
[1748060177957,0.03846976,175.11,175.08,0.03609914]
[1748060178459,5.7095,175.1,175.08,0.03609914]
[1748060178662,0.03846976,175.11,175.08,0.03609914]
[1748060179162,5.74776976,175.11,175.08,0.03609914]
[1748060179569,5.74776976,175.11,175.08,5.74599914]
[1748060180263,0.03846976,175.11,175.08,5.74599914]
[1748060180862,0.03846976,175.11,175.09,5.7095]
[1748060181359,0.03846976,175.11,175.08,0.03609914]
[1748060181559,0.03846976,175.11,175.1,5.7093]
[1748060181866,0.03846976,175.11,175.08,0.03609914]
[1748060182161,0.03846976,175.11,175.09,5.7096]
[1748060185967,0.03846976,175.11,175.08,5.74599914]
[1748060190268,5.74746976,175.11,175.08,5.74599914]
[1748060192672,0.03846976,175.11,175.08,0.03609914]
[1748060193174,5.7096,175.1,175.08,0.03609914]
[1748060193674,2.96001273,175.09,175.08,0.03609914]
[1748060194773,8.66971273,175.09,175.08,0.03609914]
[1748060195674,5.7097,175.09,175.08,0.03609914]
[1748060197074,5.7094,175.1,175.08,0.03609914]
[1748060197874,5.74756976,175.11,175.08,5.74609914]
[1748060198177,0.03846976,175.11,175.08,0.03609914]
[1748060198669,5.7097,175.09,175.08,0.03609914]
[1748060198869,0.03846976,175.11,175.08,0.03609914]
[1748060199178,5.7096,175.1,175.08,0.03609914]
[1748060200175,5.74756976,175.11,175.08,5.74609914]
[1748060201276,0.03846976,175.11,175.08,0.03609914]
[1748060202571,0.03846976,175.11,175.1,5.7093]
[1748060216579,14.18410992,175.2,175.09,3.913]
[1748060216780,113.3,175.2,175.09,3.913]
[1748060217595,0.03823577,175.16,175.13,0.03928431]
[1748060218493,0.03823577,175.16,175.15,5.7077]
[1748060218991,14.18410992,175.22,175.13,0.03928431]
[1748060219293,14.18410992,175.22,175.21,5.7058]
[1748060220695,0.03694825,175.23,175.21,5.7058]
[1748060221193,0.03694825,175.23,175.22,5.7054]
[1748060229301,4.825e-05,175.23,175.22,5.7054]
[1748060229493,4.825e-05,175.23,175.22,114.1454]
[1748060238202,113.18,175.39,175.22,178.14]
[1748060238403,117.0544,175.4,175.26,4.62493829]
[1748060238704,122.7542,175.4,175.35,5.7009]
[1748060238906,117.0544,175.4,175.35,5.7009]
[1748060239094,5.6999,175.39,175.35,5.7009]
[1748060239406,0.04011466,175.39,175.36,0.04249458]
[1748060240614,5.74011466,175.39,175.36,0.04249458]
[1748060241710,5.7003,175.38,175.36,0.04249458]
[1748060243209,5.7006,175.37,175.36,0.04249458]
[1748060244909,5.7016,175.34,175.29,113.14]
[1748060245303,5.7018,175.34,175.29,113.14]
[1748060245609,5.7018,175.34,175.28,108.4]
[1748060245803,5.7018,175.34,175.3,5.7026]
[1748060246003,0.04080749,175.33,175.29,0.03973879]
[1748060246411,0.04080749,175.33,175.31,5.7023]
[1748060246712,0.04080749,175.33,175.29,0.03973879]
[1748060247011,0.04080749,175.33,175.32,5.7022]
[1748060253208,7.49e-06,175.33,175.32,5.7022]
[1748060261919,7.49e-06,175.33,175.29,0.03973879]
[1748060262413,11.57960749,175.33,175.29,0.03973879]
[1748060262617,5.87750749,175.33,175.29,0.03973879]
[1748060263119,5.7024,175.32,175.29,0.03973879]
[1748060263921,4.62493829,175.32,175.25,5.7044]
[1748060264127,4.62493829,175.32,175.2,113.1]
[1748060264321,5.7037,175.28,175.2,113.1]
[1748060264519,113.1,175.28,175.2,113.1]
[1748060264831,5.7051,175.23,175.22,0.03813167]
[1748060265027,4.62493829,175.23,175.18,5.7064]
[1748060265224,1.8695,175.22,175.17,5.33880281]
[1748060266027,0.03936551,175.21,175.18,0.04055683]
[1748060266327,0.03936551,175.21,175.19,5.7064]
[1748060266529,0.03936551,175.21,175.18,0.04055683]
[1748060267125,0.03936551,175.21,175.19,5.7062]
[1748060267322,0.03936551,175.21,175.18,0.04055683]
[1748060267723,0.03936551,175.21,175.19,5.7061]
[1748060267926,0.03936551,175.21,175.18,0.04055683]
[1748060268232,0.03936551,175.21,175.19,5.7064]
[1748060269334,0.03936551,175.21,175.2,5.7061]
[1748060270027,113.14,175.31,175.28,5.7035]
[1748060271032,113.17607764,175.31,175.28,5.74169572]
[1748060272234,113.17607764,175.31,175.28,0.03819572]
[1748060273831,113.17607764,175.31,175.28,5.74169572]
[1748060275232,118.87857764,175.31,175.28,0.03819572]
[1748060275632,113.17607764,175.31,175.28,0.03819572]
[1748060276134,118.87867764,175.31,175.28,0.03819572]
[1748060276837,113.17607764,175.31,175.28,5.74149572]
[1748060277435,113.17607764,175.31,175.28,0.03819572]
[1748060279640,118.87867764,175.31,175.28,0.03819572]
[1748060280036,113.17607764,175.31,175.28,0.03819572]
[1748060280940,5.7031,175.3,175.28,0.03819572]
[1748060281940,5.7032,175.29,175.28,0.03819572]
[1748060282138,117.80101593,175.31,175.18,1.9328]
[1748060282335,4.62493829,175.24,175.14,3.8571]
[1748060282636,113.14,175.23,175.14,3.8571]
[1748060283236,0.04320297,175.2,175.17,0.03741022]
[1748060284138,113.16,175.19,175.17,0.03741022]
[1748060284540,113.16,175.19,175.17,5.74441022]
[1748060285738,0.04320297,175.2,175.18,5.7067]
[1748060286036,0.04320297,175.2,175.17,0.03741022]
[1748060286542,0.04320297,175.2,175.19,5.7064]
[1748060304548,2.97e-06,175.2,175.19,5.7064]
[1748060305659,497.37528951,175.33,175.29,5.7029]
[1748060305854,113.52,175.32,175.29,5.7029]
[1748060306661,0.03776179,175.32,175.29,0.04250025]
[1748060307662,0.03776179,175.32,175.3,5.7028]
[1748060307960,0.03776179,175.32,175.29,0.04250025]
[1748060308366,0.03776179,175.32,175.29,5.74560025]
[1748060309261,0.03776179,175.32,175.3,5.7028]
[1748060309463,0.03776179,175.32,175.29,0.04250025]
[1748060309763,5.73996179,175.32,175.29,0.04250025]
[1748060310662,0.03776179,175.32,175.29,5.74540025]
[1748060311264,5.74026179,175.32,175.29,0.04250025]
[1748060311455,0.03776179,175.32,175.29,0.04250025]
[1748060312565,5.7025,175.31,175.29,0.04250025]
[1748060313364,5.73996179,175.32,175.29,0.04250025]
[1748060314065,5.73996179,175.32,175.29,5.74570025]
[1748060314665,0.03776179,175.32,175.3,5.7027]
[1748060315264,0.03776179,175.32,175.29,0.04250025]
[1748060315467,0.03776179,175.32,175.31,5.7025]
[1748060315967,0.03776179,175.32,175.3,5.7027]
[1748060316269,0.03776179,175.32,175.29,0.04250025]
[1748060316460,0.03776179,175.32,175.31,5.7025]
[1748060317965,0.03776179,175.32,175.29,0.04250025]
[1748060318660,5.74016179,175.32,175.29,0.04250025]
[1748060319271,5.74016179,175.32,175.29,5.74560025]
[1748060319569,5.74016179,175.32,175.29,0.04250025]
[1748060320671,5.74016179,175.32,175.29,5.74540025]
[1748060321772,0.03776179,175.32,175.29,5.74540025]
[1748060322476,5.74016179,175.32,175.29,5.74540025]
[1748060327978,0.03776179,175.32,175.3,5.7028]
[1748060328677,0.03776179,175.32,175.31,5.7025]
[1748060333985,6.179e-05,175.32,175.31,5.7025]
[1748060343492,6.179e-05,175.32,175.31,7.7128]
[1748060345392,6.179e-05,175.32,175.31,13.4128]
[1748060345593,6.179e-05,175.32,175.31,7.7128]
[1748060354595,115.8662,175.42,175.31,7.7128]
[1748060355601,0.03695371,175.38,175.35,0.04302296]
[1748060356489,5.73725371,175.38,175.35,0.04302296]
[1748060356693,118.99725371,175.38,175.35,0.04302296]
[1748060357306,5.7006,175.37,175.35,0.04302296]
[1748060357605,113.29695371,175.38,175.35,0.04302296]
[1748060358905,118.99735371,175.38,175.35,0.04302296]
[1748060359100,113.29695371,175.38,175.35,0.04302296]
[1748060359504,118.99735371,175.38,175.35,0.04302296]
[1748060360710,118.99735371,175.38,175.35,5.74422296]
[1748060362302,113.29695371,175.38,175.36,5.7009]
[1748060363005,0.03695371,175.38,175.37,5.7006]
[1748060368513,113.26,175.44,175.35,113.30302296]
[1748060368713,113.26,175.45,175.35,113.26]
[1748060369209,113.26,175.45,175.42,5.6989]
[1748060369405,113.30205469,175.45,175.42,0.04022514]
[1748060370715,113.30205469,175.45,175.42,5.73892514]
[1748060371512,113.30205469,175.45,175.43,5.6986]
[1748060371712,113.30205469,175.45,175.42,0.04022514]
[1748060372215,5.6984,175.44,175.42,0.04022514]
[1748060372614,113.30205469,175.45,175.42,0.04022514]
[1748060372813,5.6984,175.44,175.42,0.04022514]
[1748060373315,113.30205469,175.45,175.42,5.73922514]
[1748060374318,119.00015469,175.45,175.42,5.73922514]
[1748060375416,113.30205469,175.45,175.42,0.04022514]
[1748060376619,113.30205469,175.45,175.44,5.6983]
[1748060377521,113.30205469,175.45,175.42,5.73912514]
[1748060378118,113.30205469,175.45,175.43,5.6986]
[1748060379923,113.30205469,175.45,175.44,5.6983]
[1748060381024,113.30205469,175.45,175.43,5.6986]
[1748060381530,113.30205469,175.45,175.44,5.6983]
[1748060381721,113.30205469,175.45,175.42,0.04022514]
[1748060383127,113.30205469,175.45,175.43,5.6984]
[1748060383328,0.04205469,175.45,175.42,0.04022514]
[1748060384530,0.04205469,175.45,175.44,5.6983]
[1748060395836,0.04205469,175.45,175.43,5.6985]
[1748060396037,0.04205469,175.45,175.42,0.04022514]
[1748060396537,0.04205469,175.45,175.44,5.6983]
[1748060398736,2.73945469,175.47,175.44,5.6983]
[1748060399338,1.868,175.48,175.42,0.04022514]
[1748060399734,2.0203,175.47,175.42,0.04022514]
[1748060399937,2.05907685,175.47,175.42,0.04022514]
[1748060400933,5.6986,175.43,175.42,0.04022514]
[1748060403442,5.6984,175.44,175.42,0.04022514]
[1748060403633,114.84,175.45,175.42,0.04022514]
[1748060404041,5.6986,175.43,175.42,0.04022514]
[1748060405938,5.6984,175.44,175.42,0.04022514]
[1748060408635,5.6986,175.43,175.42,0.04022514]
[1748060413641,8.64733735,175.43,175.42,0.04022514]
[1748060413845,2.94873735,175.43,175.33,119.9827]
[1748060414044,2.94873735,175.4,175.33,119.9827]
[1748060414844,0.03948212,175.38,175.35,0.03820736]
[1748060416549,0.03948212,175.38,175.37,5.7006]
[1748060416943,0.03948212,175.38,175.35,0.03820736]
[1748060417144,0.03948212,175.38,175.37,5.7006]
[1748060418036,0.03948212,175.38,175.36,5.7008]
[1748060418440,0.03948212,175.38,175.35,0.03820736]
[1748060418642,5.73988212,175.38,175.35,5.73920736]
[1748060419247,0.03948212,175.38,175.36,5.7008]
[1748060422843,0.03948212,175.38,175.37,5.7006]
[1748060425250,114.26,175.44,175.35,0.03820736]
[1748060425445,114.26,175.44,175.35,1.9833]
[1748060426149,0.03799848,175.41,175.38,0.03844012]
[1748060427552,0.03799848,175.41,175.4,5.6996]
[1748060432161,14.18410992,175.52,175.41,4.60849161]
[1748060432360,14.18410992,175.52,175.44,4.60849161]
[1748060432558,14.18410992,175.52,175.51,5.6961]
[1748060433659,14.18410992,175.52,175.5,0.04020288]
[1748060436166,0.04379885,175.53,175.5,0.04020288]
[1748060436167,5.73919885,175.53,175.5,0.04020288]
[1748060438262,5.696,175.52,175.5,0.04020288]
[1748060438466,4.60849161,175.52,175.5,0.04020288]
[1748060438867,5.6961,175.51,175.5,0.04020288]
[1748060444970,4.60849161,175.49,175.44,5.6983]
[1748060445163,113.62,175.48,175.44,5.6983]
[1748060445669,5.6975,175.47,175.43,5.6986]
[1748060445870,5.74026092,175.47,175.43,5.74050949]
[1748060446065,5.6977,175.46,175.43,5.74050949]
[1748060446272,0.04276092,175.47,175.43,5.74050949]
[1748060446571,5.74036092,175.47,175.44,5.6983]
[1748060447173,5.74036092,175.47,175.43,5.74050949]
[1748060447365,5.6978,175.46,175.43,5.74050949]
[1748060447562,4.60849161,175.46,175.43,0.04190949]
[1748060448171,5.6981,175.45,175.43,0.04190949]
[1748060448571,4.60849161,175.46,175.3,85.35249442]
[1748060448778,5.6991,175.42,175.31,119.4156]
[1748060449168,5.6991,175.42,175.39,5.6998]
[1748060449566,10.30729161,175.43,175.39,5.73671176]
[1748060449780,0.0420733,175.42,175.39,5.73671176]
[1748060450574,5.7410733,175.42,175.39,0.03691176]
[1748060451372,0.0420733,175.42,175.39,0.03691176]
[1748060451576,5.6996,175.41,175.39,0.03691176]
[1748060452378,5.7411733,175.42,175.39,0.03691176]
[1748060452567,0.0420733,175.42,175.39,0.03691176]
[1748060453277,5.6996,175.4,175.39,0.03691176]
[1748060453574,119.3396,175.4,175.39,0.03691176]
[1748060454976,123.94809161,175.4,175.39,0.03691176]
[1748060456982,113.64,175.4,175.39,0.03691176]
[1748060457577,113.64,175.4,175.39,5.73691176]
[1748060460889,113.64,175.4,175.39,0.03691176]
[1748060461286,119.3396,175.4,175.39,0.03691176]
[1748060462590,5.7006,175.38,175.34,5.7015]
[1748060462790,113.64,175.4,175.36,5.7009]
[1748060463093,5.7,175.39,175.31,5.7956]
[1748060463391,0.04225671,175.37,175.33,0.03896132]
[1748060464093,0.04225671,175.37,175.35,5.701]
[1748060468899,0.04225671,175.37,175.36,5.7009]
[1748060475304,0.04225671,175.37,175.35,5.7011]
[1748060477895,5.74285671,175.37,175.34,5.7015]
[1748060478098,4.65074832,175.37,175.33,0.03896132]
[1748060478503,113.46,175.36,175.33,0.03896132]
[1748060479506,113.46,175.36,175.33,5.74086132]
[1748060479907,113.46,175.36,175.33,0.03896132]
[1748060480299,119.1612,175.36,175.33,5.74076132]
[1748060481607,113.46,175.36,175.33,5.74076132]
[1748060481810,113.46,175.36,175.34,5.7014]
[1748060482713,113.46,175.36,175.35,5.7013]
[1748060490313,0.04225671,175.37,175.36,5.7009]
[1748060492411,113.48,175.43,175.34,117.397]
[1748060492713,14.18410992,175.45,175.35,1.9788]
[1748060492914,14.18410992,175.45,175.44,5.6983]
[1748060493907,0.04136049,175.46,175.45,5.698]
[1748060496017,0.04136049,175.46,175.44,5.6982]
[1748060496213,0.04136049,175.46,175.43,0.0400937]
[1748060497216,0.04136049,175.46,175.43,5.7386937]
[1748060497813,0.04136049,175.46,175.43,0.0400937]
[1748060498117,0.04136049,175.46,175.35,1.9788]
[1748060498118,118.04849161,175.45,175.35,1.9788]
[1748060498415,5.6995,175.41,175.37,5.7005]
[1748060498606,4.60849161,175.42,175.35,1.9788]
[1748060498806,113.44,175.41,175.34,3.917]
[1748060499011,113.44,175.41,175.36,0.03690178]
[1748060499214,0.04277952,175.39,175.36,0.03690178]
[1748060499514,5.7006,175.38,175.36,0.03690178]
[1748060499717,4.65127113,175.39,175.36,0.03690178]
[1748060500616,10.35127113,175.39,175.36,0.03690178]
[1748060501016,4.65127113,175.39,175.36,0.03690178]
[1748060501618,10.35137113,175.39,175.36,0.03690178]
[1748060502119,4.65127113,175.39,175.36,5.73780178]
[1748060502318,0.04277952,175.39,175.36,0.03690178]
[1748060502718,0.04277952,175.39,175.37,5.7006]
[1748060503419,0.04277952,175.39,175.38,5.7003]
[1748060510826,0.04277952,175.39,175.37,5.7005]
[1748060511725,0.04277952,175.39,175.38,5.7003]
[1748060512326,0.04277952,175.39,175.36,0.03690178]
[1748060513626,0.04277952,175.39,175.38,5.7003]
[1748060516426,0.04277952,175.39,175.37,5.7005]
[1748060517326,0.04277952,175.39,175.36,5.73770178]
[1748060519228,0.04277952,175.39,175.37,5.7006]
[1748060519928,5.74287952,175.39,175.36,5.73770178]
[1748060520625,0.04277952,175.39,175.36,0.03690178]
[1748060521230,0.04277952,175.39,175.37,5.7004]
[1748060521728,5.74277952,175.39,175.37,5.7004]
[1748060521928,5.74277952,175.39,175.36,5.73780178]
[1748060527232,5.7003,175.38,175.36,0.03690178]
[1748060527533,0.04277952,175.39,175.36,0.03690178]
[1748060528637,5.74297952,175.39,175.36,5.73780178]
[1748060529637,0.04277952,175.39,175.37,5.7005]
[1748060530034,5.74277952,175.39,175.36,5.73770178]
[1748060530529,0.04277952,175.39,175.36,0.03690178]
[1748060530736,0.04277952,175.39,175.38,5.7003]
[1748060530925,0.04277952,175.39,175.36,0.03690178]
[1748060530926,113.24,175.47,175.37,1.9795]
[1748060531429,113.24,175.47,175.45,5.6978]
[1748060531732,113.24,175.47,175.44,5.6983]
[1748060531934,113.27864169,175.47,175.44,5.73900594]
[1748060532229,113.27864169,175.47,175.44,0.04070594]
[1748060532937,113.27864169,175.47,175.45,5.698]
[1748060533636,118.97604169,175.47,175.45,5.698]
[1748060534533,118.97604169,175.47,175.44,0.04070594]
[1748060534534,113.27864169,175.47,175.46,5.6977]
[1748060534736,0.03864169,175.47,175.46,5.6977]
[1748060535839,0.03864169,175.47,175.44,0.04070594]
[1748060538043,0.03864169,175.47,175.45,5.698]
[1748060538337,0.03864169,175.47,175.44,0.04070594]
[1748060538537,5.73604169,175.47,175.44,0.04070594]
[1748060539035,0.03864169,175.47,175.44,5.73880594]
[1748060540942,0.03864169,175.47,175.45,5.698]
[1748060542942,0.03864169,175.47,175.44,5.73890594]
[1748060544641,0.03864169,175.47,175.45,5.6979]
[1748060545743,5.73604169,175.47,175.44,5.73880594]
[1748060545940,0.03864169,175.47,175.44,5.73880594]
[1748060547838,0.03864169,175.47,175.45,5.698]
[1748060548950,0.03864169,175.47,175.46,5.6977]
[1748060549542,0.03864169,175.47,175.45,5.6979]
[1748060550835,0.03864169,175.47,175.46,5.6977]
[1748060551238,118.8955,175.53,175.49,5.6965]
[1748060551739,5.6958,175.52,175.49,5.6965]
[1748060552237,5.7319258,175.52,175.49,5.73543755]
[1748060552440,0.0361258,175.52,175.49,5.73543755]
[1748060552843,5.7319258,175.52,175.49,5.73543755]
[1748060553240,5.7319258,175.52,175.49,0.03893755]
[1748060554245,5.7319258,175.52,175.49,5.73563755]
[1748060555243,0.0361258,175.52,175.49,5.73563755]
[1748060556243,5.7319258,175.52,175.49,5.73563755]
[1748060557340,0.0361258,175.52,175.49,5.73563755]
[1748060557540,0.0361258,175.52,175.5,5.6964]
[1748060557740,0.0361258,175.52,175.49,0.03893755]
[1748060558349,5.7318258,175.52,175.49,5.73553755]
[1748060559850,5.7318258,175.52,175.5,5.6964]
[1748060560240,0.0361258,175.52,175.5,5.6964]
[1748060561346,0.0361258,175.52,175.51,5.6961]
[1748060565248,4.60123672,175.55,175.49,0.03893755]
[1748060565550,4.60123672,175.55,175.46,108.26]
[1748060565853,5.6952,175.54,175.49,5.6966]
[1748060566157,0.04315086,175.53,175.5,0.0425913]
[1748060566555,0.04315086,175.53,175.5,5.7387913]
[1748060567647,0.04315086,175.53,175.5,0.0425913]
[1748060569750,0.04315086,175.53,175.51,5.6961]
[1748060573461,0.04315086,175.53,175.5,5.7388913]
[1748060574755,0.04315086,175.53,175.51,5.6961]
[1748060574957,0.04315086,175.53,175.5,0.0425913]
[1748060575662,0.04315086,175.53,175.51,5.6958]
[1748060575958,0.04315086,175.53,175.5,0.0425913]
[1748060577559,0.04315086,175.53,175.51,5.696]
[1748060578256,0.04315086,175.53,175.52,5.6957]
[1748060579561,0.04315086,175.53,175.51,5.6959]
[1748060579764,0.04315086,175.53,175.5,0.0425913]
[1748060580463,0.04315086,175.53,175.52,5.6957]
[1748060580955,0.04315086,175.53,175.51,5.6958]
[1748060581465,0.04315086,175.53,175.5,0.0425913]
[1748060581764,0.04315086,175.53,175.52,5.6957]
[1748060593077,5.086e-05,175.53,175.52,5.6957]
[1748060595479,2.94416672,175.63,175.55,2.94416672]
[1748060595777,2.94416672,175.63,175.52,5.7]
[1748060595778,113.64,175.64,175.56,113.64]
[1748060595977,119.3321,175.64,175.56,113.64]
[1748060596371,0.03885042,175.62,175.58,0.04384397]
[1748060598477,0.03885042,175.62,175.61,5.6928]
[1748060603979,0.03885042,175.62,175.58,0.04384397]
[1748060604886,0.03885042,175.62,175.61,5.6928]
[1748060605086,0.03885042,175.62,175.58,0.04384397]
[1748060605578,0.03885042,175.62,175.61,5.6928]
[1748060607285,5.6929,175.61,175.58,0.04384397]
[1748060607684,5.73145042,175.62,175.58,5.73744397]
[1748060608989,5.6928,175.61,175.58,5.73744397]
[1748060609190,0.03885042,175.62,175.58,5.73744397]
[1748060610593,5.6928,175.61,175.58,5.73744397]
[1748060611092,0.03885042,175.62,175.58,0.04384397]
[1748060611793,5.6933,175.6,175.58,0.04384397]
[1748060611993,0.03885042,175.62,175.58,0.04384397]
[1748060612201,5.6934,175.6,175.58,0.04384397]
[1748060612693,5.6935,175.59,175.58,0.04384397]
[1748060613493,4.59673718,175.59,175.51,2.0151]
[1748060613894,118.21673718,175.59,175.51,2.0151]
[1748060614094,5.6942,175.57,175.51,2.0151]
[1748060614599,0.04072055,175.56,175.54,5.6951]
[1748060616294,0.04072055,175.56,175.52,0.03719914]
[1748060616295,0.04072055,175.56,175.55,5.6948]
[1748060617494,6.50543718,175.64,175.52,0.03719914]
[1748060617691,5.6934,175.6,175.52,113.62]
[1748060617893,119.3134,175.6,175.52,113.62]
[1748060618088,113.62,175.6,175.55,5.6945]
[1748060618289,5.73542344,175.59,175.56,0.03872955]
[1748060618490,0.04172344,175.59,175.58,5.6938]
[1748060621695,0.04172344,175.59,175.57,5.694]
[1748060622401,0.04172344,175.59,175.56,0.03872955]
[1748060622600,114.8,175.58,175.56,0.03872955]
[1748060624098,5.6941,175.57,175.56,0.03872955]
[1748060626105,114.8,175.58,175.56,0.03872955]
[1748060626899,114.8,175.58,175.56,5.73292955]
[1748060628008,114.8,175.58,175.57,5.6941]
[1748060628606,114.8,175.58,175.56,0.03872955]
[1748060631008,5.6941,175.57,175.56,0.03872955]
[1748060633410,114.8,175.58,175.56,0.03872955]
[1748060634703,120.4938,175.58,175.56,0.03872955]
[1748060636913,114.8,175.58,175.56,0.03872955]
[1748060637608,120.4938,175.58,175.56,0.03872955]
[1748060638811,5.6941,175.57,175.56,0.03872955]
[1748060641008,114.8,175.58,175.46,1.9028]
[1748060641212,6.57163718,175.56,175.46,1.9028]
[1748060642010,5.6959,175.52,175.49,0.04028801]
[1748060642610,5.6959,175.52,175.49,5.73688801]
[1748060644113,120.55707323,175.53,175.5,5.6964]
[1748060646413,114.86157323,175.53,175.52,5.6957]
[1748060647515,0.04157323,175.53,175.52,5.6957]
[1748060648413,114.84,175.57,175.56,5.6944]
[1748060648615,114.84,175.58,175.5,1.8888]
[1748060649015,114.84,175.58,175.57,5.6941]
[1748060653513,0.0433107,175.59,175.57,5.6941]
[1748060653717,0.0433107,175.59,175.58,5.6938]
[1748060659823,0.0433107,175.59,175.57,5.694]
[1748060663715,0.0433107,175.59,175.56,0.03849259]
[1748060663923,0.0433107,175.59,175.56,5.73279259]
[1748060664728,0.0433107,175.59,175.57,5.6941]
[1748060665528,0.0433107,175.59,175.56,0.03849259]
[1748060666324,5.694,175.58,175.56,0.03849259]
[1748060671833,5.7369107,175.59,175.56,0.03849259]
[1748060673133,114.46,175.58,175.56,0.03849259]
[1748060673936,120.1539,175.58,175.56,0.03849259]
[1748060674134,114.46,175.58,175.56,0.03849259]
[1748060675227,120.154,175.58,175.56,0.03849259]
[1748060675731,5.6941,175.57,175.56,0.03849259]
[1748060683642,8.63802438,175.57,175.56,0.03849259]
[1748060690245,5.695,175.55,175.51,5.6959]
[1748060690446,2.94392438,175.54,175.51,5.6959]
[1748060691151,8.63902438,175.54,175.51,5.6959]
[1748060691343,8.68121033,175.54,175.51,5.73489389]
[1748060693447,122.70121033,175.54,175.51,5.73489389]
[1748060693651,117.00611033,175.54,175.51,5.73489389]
[1748060694650,117.00611033,175.54,175.52,5.6957]
[1748060695247,117.00611033,175.54,175.53,5.6954]
[1748060699163,117.00611033,175.54,175.52,5.6957]
[1748060699558,117.00611033,175.54,175.51,0.03899389]
[1748060700558,117.00611033,175.54,175.53,5.6954]
[1748060701054,117.00611033,175.54,175.52,5.6955]
[1748060701261,117.00611033,175.54,175.51,0.03899389]
[1748060702258,117.00611033,175.54,175.52,5.6957]
[1748060703063,117.00611033,175.54,175.53,5.6954]
[1748060703260,114.06218595,175.54,175.53,5.6954]
[1748060703464,117.00611033,175.54,175.53,5.6954]
[1748060706264,117.00611033,175.54,175.52,5.6956]
[1748060708766,117.00611033,175.54,175.51,0.03899389]
[1748060709265,114.06218595,175.54,175.51,0.03899389]
[1748060710262,114.06218595,175.54,175.53,5.6954]
[1748060710862,0.04218595,175.54,175.53,5.6954]
[1748060711959,0.04218595,175.54,175.52,5.6956]
[1748060712767,0.04218595,175.54,175.53,5.6954]
[1748060712959,0.04218595,175.54,175.51,0.03899389]
[1748060713668,0.04218595,175.54,175.53,5.6954]
[1748060714369,0.04218595,175.54,175.52,5.6956]
[1748060715769,5.73728595,175.54,175.51,5.73499389]
[1748060717071,5.6957,175.52,175.51,0.03899389]
[1748060717273,119.0557,175.52,175.51,0.03899389]
[1748060723273,119.0557,175.52,175.45,7.7441]
[1748060723274,5.697,175.49,175.45,5.6978]
[1748060723472,2.94392438,175.48,175.45,5.6978]
[1748060724273,2.98110528,175.48,175.45,5.735684]
[1748060724680,2.98110528,175.48,175.46,5.6976]
[1748060725379,2.98110528,175.48,175.47,5.6974]
[1748060725578,2.98110528,175.48,175.45,0.037884]
[1748060725982,2.98110528,175.48,175.46,5.6974]
[1748060726481,2.98110528,175.48,175.47,5.6974]
[1748060726984,2.98110528,175.48,175.45,0.037884]
[1748060727279,2.98110528,175.48,175.46,5.6976]
[1748060729386,2.98110528,175.48,175.47,5.6974]
[1748060732390,2.98110528,175.48,175.45,5.735684]
[1748060733283,116.38110528,175.48,175.46,5.6976]
[1748060734895,116.38110528,175.48,175.47,5.6974]
[1748060737491,116.38110528,175.48,175.46,5.6976]
[1748060738485,116.38110528,175.48,175.47,5.6974]
[1748060738790,116.38110528,175.48,175.45,0.037884]
[1748060740092,113.4371809,175.48,175.47,5.6974]
[1748060740385,113.4,175.53,175.47,2.94392438]
[1748060740589,113.4,175.53,175.48,2.0219]
[1748060740783,113.4,175.56,175.48,2.0219]
[1748060740990,113.4,175.56,175.49,2.94392438]
[1748060741388,0.04231343,175.54,175.51,2.98428796]
[1748060741589,14.18410992,175.58,175.51,2.98428796]
[1748060742590,14.18410992,175.58,175.55,5.6948]
[1748060742591,0.03808716,175.56,175.55,5.6948]
[1748060747795,0.03808716,175.56,175.54,5.7339414]
[1748060748396,0.03808716,175.56,175.54,0.0389414]
[1748060749296,5.73258716,175.56,175.54,0.0389414]
[1748060749797,0.03808716,175.56,175.54,5.7340414]